[Event "Balkan Youth Online-ch 2020"]
[Site "Online"]
[Date "2020.10.31"]
[Round "5.51"]
[White "Iustin, Silviu"]
[Black "Eftovski, Mateo"]
[Result "1/2-1/2"]
[ECO "C54"]
[WhiteElo "1998"]
[BlackElo "1818"]
[Annotator "ChessBase"]
[PlyCount "102"]
[EventDate "2020.10.31"]
[EventType "swiss"]
[SourceTitle "playchess.com"]
[Source "ChessBase"]
[SourceQuality "1"]
[TimeControl "1500+5"]

1. e4 {[%emt 0:00:00]} e5 {[%emt 0:00:00]} 2. Nf3 {[%emt 0:00:00]} Nc6 {[%emt 0:00:00]} 3. Bc4 {[%emt 0:00:00]} Bc5 {[%emt 0:00:00]} 4. c3 {[%emt 0:00:00]} Nf6 {[%emt 0:00:00]} 5. d4 {[%emt 0:00:00]} exd4 {[%emt 0:00:00]} 6. e5 {[%emt 0:00:00]} d5 {[%emt 0:00:00]} 7. Bb5 {[%emt 0:00:00]} Ne4 {[%emt 0:00:00]} 8. cxd4 {[%emt 0:00:00]} Bb6 {[%emt 0:00:00]} 9. Nc3 {[%emt 0:00:00]} O-O {[%emt 0:00:00]} 10. Be3 {[%emt 0:00:00]} Bg4 {[%emt 0:00:00]} 11. Bxc6 {[%emt 0:00:57]} bxc6 {[%emt 0:00:00]} 12. Qc2 {[%emt 0:00:00]} Bf5 {[%emt 0:09:34]} 13. Qa4 {[%emt 0:01:33]} Nxc3 {[%emt 0:02:33]} 14. bxc3 {[%emt 0:00:02]} Qd7 {[%emt 0:01:10]} 15. O-O {[%emt 0:00:10]} Rae8 {[%emt 0:01:21]} 16. Qd1 {[%emt 0:00:46]} Bg4 {[%emt 0:00:26]} 17. h3 {[%emt 0:00:11]} Bh5 {[%emt 0:00:05]} 18. g4 {[%emt 0:00:29]} Bg6 {[%emt 0:00:17]} 19. Nh4 {[%emt 0:00:18]} f5 {[%emt 0:02:32]} 20. f4 {[%emt 0:01:28]} Qe7 {[%emt 0:01:05]} 21. Nxg6 {[%emt 0:00:21]} hxg6 {[%emt 0:00:00]} 22. g5 {[%emt 0:00:02]} Kf7 {[%emt 0:01:00]} 23. Kg2 {[%emt 0:00:00]} Rh8 {[%emt 0:00:02]} 24. a4 {[%emt 0:00:17]} a5 {[%emt 0:00:00]} 25. Bc1 {[%emt 0:00:14]} Rh4 {[%emt 0:00:44]} 26. Ba3 {[%emt 0:00:13]} Qe6 {[%emt 0:00:00]} 27. Qd3 {[%emt 0:00:20]} Reh8 {[%emt 0:00:00]} 28. Rf3 {[%emt 0:00:00]} Rd8 {[%emt 0:03:05]} 29. Rb1 {[%emt 0:00:18]} Rd7 {[%emt 0:01:05]} 30. Kg3 {[%emt 0:00:23]} Rh5 {[%emt 0:00:06]} 31. h4 {[%emt 0:00:53]} Rd8 {[%emt 0:00:06]} 32. Rf2 {[%emt 0:00:06]} Rdh8 {[%emt 0:00:00]} 33. Rh2 {[%emt 0:00:04]} Rd8 {[%emt 0:00:00]} 34. Qa6 {[%emt 0:00:07]} Kg8 {[%emt 0:00:55]} 35. Rhb2 {[%emt 0:00:22]} Kh7 {[%emt 0:00:21]} 36. Rxb6 {[%emt 0:00:17]} cxb6 {[%emt 0:00:00]} 37. Rxb6 {[%emt 0:00:07]} Rc8 {[%emt 0:00:31]} 38. Qxa5 {[%emt 0:00:43]} Qd7 {[%emt 0:00:23]} 39. Bc5 {[%emt 0:00:44]} Kg8 {[%emt 0:00:04]} 40. Qb4 {[%emt 0:00:15]} Rh8 {[%emt 0:00:25]} 41. a5 {[%emt 0:00:20]} Kh7 {[%emt 0:00:00]} 42. Rb7 {[%emt 0:00:06]} Rc7 {[%emt 0:00:00]} 43. Rxc7 {[%emt 0:01:11]} Qxc7 {[%emt 0:00:00]} 44. Bb6 {[%emt 0:00:00]} Qb7 {[%emt 0:00:00]} 45. Qd6 {[%emt 0:00:45]} Qa6 {[%emt 0:00:02]} 46. Kf2 {[%emt 0:01:05]} Qd3 {[%emt 0:00:03]} 47. Qxc6 {[%emt 0:00:11]} Qd2+ {[%emt 0:00:03]} 48. Kf1 {[%emt 0:00:00]} Qd1+ {[%emt 0:00:00]} 49. Kf2 {[%emt 0:00:00]} Qd2+ {[%emt 0:00:00]} 50. Kf3 {[%emt 0:00:00]} Qd3+ {[%emt 0:00:00]} 51. Kf2 {[%emt 0:00:00]} Qd2+ {[%emt 0:00:00]} 1/2-1/2

[Event "Balkan Youth Online-ch 2020"]
[Site "Online"]
[Date "2020.10.31"]
[Round "5.54"]
[White "Bagas, Ana"]
[Black "Ciocirlan, Bianca-Alexandra"]
[Result "0-1"]
[ECO "C54"]
[WhiteElo "1589"]
[BlackElo "1038"]
[Annotator "NA"]
[PlyCount "80"]
[EventDate "2020.10.31"]
[EventType "swiss"]
[SourceTitle "playchess.com"]
[Source "ChessBase"]
[SourceQuality "1"]
[TimeControl "1500+5"]

1. e4 {[%emt 0:00:00]} e5 {[%emt 0:00:00]} 2. Nf3 {[%emt 0:00:00]} Nc6 {[%emt 0:00:00]} 3. Bc4 {[%emt 0:00:00]} Bc5 {[%emt 0:00:00]} 4. d3 {[%emt 0:00:00]} h6 {[%emt 0:00:05]} 5. c3 {[%emt 0:00:00]} Nf6 {[%emt 0:00:02]} 6. Nbd2 {[%emt 0:00:03]} O-O {[%emt 0:00:04]} 7. O-O {[%emt 0:00:05]} d6 {[%emt 0:00:03]} 8. Re1 {[%emt 0:00:04]} Be6 {[%emt 0:00:21]} 9. Bb5 {[%emt 0:00:01]} Qd7 {[%emt 0:00:37]} 10. Nf1 {[%emt 0:00:11]} a6 {[%emt 0:00:03]} 11. Ba4 {[%emt 0:00:01]} b5 {[%emt 0:00:03]} 12. Bc2 {[%emt 0:00:00]} d5 {[%emt 0:01:06]} 13. exd5 {[%emt 0:00:19]} Bxd5 {[%emt 0:00:07]} 14. Nxe5 {[%emt 0:02:24]} Nxe5 {[%emt 0:00:00]} 15. Rxe5 {[%emt 0:00:05]} Bxf2+ {[%emt 0:00:00]} 16. Kh1 {[%emt 0:00:32]} Bb7 {[%emt 0:00:02]} 17. d4 {[%emt 0:00:57]} Rfe8 {[%emt 0:00:42]} 18. Qe2 {[%emt 0:01:40]} Ng4 {[%emt 0:01:35]} 19. Bf4 {[%emt 0:02:19]} Nxe5 {[%emt 0:00:57]} 20. dxe5 {[%emt 0:00:26]} Bb6 {[%emt 0:00:55]} 21. Ne3 {[%emt 0:00:45]} Bxe3 {[%emt 0:00:49]} 22. Qxe3 {[%emt 0:00:29]} Qe6 {[%emt 0:00:43]} 23. Qg3 {[%emt 0:00:48]} Rad8 {[%emt 0:01:02]} 24. Bb3 {[%emt 0:00:41]} Bd5 {[%emt 0:00:58]} 25. Bxd5 {[%emt 0:00:28]} Rxd5 {[%emt 0:00:08]} 26. Rf1 {[%emt 0:00:39]} Red8 {[%emt 0:00:34]} 27. h3 {[%emt 0:00:30]} Rd1 {[%emt 0:00:49]} 28. Rxd1 {[%emt 0:00:38]} Rxd1+ {[%emt 0:00:00]} 29. Kh2 {[%emt 0:00:00]} Rd7 {[%emt 0:01:13]} 30. Qf3 {[%emt 0:00:54]} Rd5 {[%emt 0:01:28]} 31. Qe2 {[%emt 0:02:05]} Qf5 {[%emt 0:01:24]} 32. Qf3 {[%emt 0:00:23]} Rd8 {[%emt 0:02:08]} 33. Qe3 {[%emt 0:00:57]} Rd3 {[%emt 0:01:46]} 34. Qc1 {[%emt 0:00:00]} c5 {[%emt 0:00:42]} 35. b4 {[%emt 0:00:27]} cxb4 {[%emt 0:00:21]} 36. cxb4 {[%emt 0:00:04]} Rd4 {[%emt 0:00:22]} 37. Bg3 {[%emt 0:00:56]} Rxb4 {[%emt 0:00:16]} 38. Qa3 {[%emt 0:00:20]} Ra4 {[%emt 0:00:16]} 39. Qb3 {[%emt 0:01:01]} Qe6 {[%emt 0:00:07]} 40. Qd3 {[%emt 0:00:27]} Rxa2 {[%emt 0:00:25]} 0-1

[Event "Balkan Youth Online-ch 2020"]
[Site "Online"]
[Date "2020.10.31"]
[Round "5.55"]
[White "Beber, Anja"]
[Black "Caku, Kler"]
[Result "1/2-1/2"]
[ECO "C52"]
[WhiteElo "1285"]
[BlackElo "1199"]
[Annotator "NA"]
[PlyCount "96"]
[EventDate "2020.10.31"]
[EventType "swiss"]
[SourceTitle "playchess.com"]
[Source "ChessBase"]
[SourceQuality "1"]
[TimeControl "1500+5"]

1. e4 {[%emt 0:00:00]} e5 {[%emt 0:00:00]} 2. Nf3 {[%emt 0:00:00]} Nc6 {[%emt 0:00:00]} 3. Bc4 {[%emt 0:00:00]} Bc5 {[%emt 0:00:00]} 4. b4 {[%emt 0:00:00]} Bxb4 {[%emt 0:00:00]} 5. c3 {[%emt 0:00:00]} Ba5 {[%emt 0:00:12]} 6. d4 {[%emt 0:00:00]} exd4 {[%emt 0:00:13]} 7. O-O {[%emt 0:00:00]} Nge7 {[%emt 0:00:20]} 8. Ng5 {[%emt 0:00:24]} d5 {[%emt 0:00:50]} 9. exd5 {[%emt 0:00:04]} Ne5 {[%emt 0:00:38]} 10. Qa4+ {[%emt 0:03:40]} Bd7 {[%emt 0:01:37]} 11. Qxa5 {[%emt 0:00:47]} Nxc4 {[%emt 0:00:02]} 12. Qb4 {[%emt 0:00:03]} Nd6 {[%emt 0:00:12]} 13. Qxd4 {[%emt 0:00:34]} O-O {[%emt 0:00:22]} 14. Qd3 {[%emt 0:00:17]} Ng6 {[%emt 0:01:46]} 15. c4 {[%emt 0:04:30]} h6 {[%emt 0:02:40]} 16. Nf3 {[%emt 0:00:16]} Qf6 {[%emt 0:00:53]} 17. Qc3 {[%emt 0:01:25]} Qxc3 {[%emt 0:00:31]} 18. Nxc3 {[%emt 0:00:00]} Nxc4 {[%emt 0:00:06]} 19. Rb1 {[%emt 0:00:01]} b6 {[%emt 0:00:35]} 20. Ne4 {[%emt 0:00:27]} Bf5 {[%emt 0:00:52]} 21. Re1 {[%emt 0:00:01]} Rfe8 {[%emt 0:01:19]} 22. Rb4 {[%emt 0:00:28]} Bxe4 {[%emt 0:00:25]} 23. Rxc4 {[%emt 0:00:02]} Bxd5 {[%emt 0:02:21]} 24. Rxe8+ {[%emt 0:00:00]} Rxe8 {[%emt 0:00:00]} 25. Rxc7 {[%emt 0:00:00]} Re2 {[%emt 0:02:29]} 26. a3 {[%emt 0:00:13]} Nh4 {[%emt 0:02:11]} 27. Kf1 {[%emt 0:00:45]} Bxf3 {[%emt 0:00:44]} 28. gxf3 {[%emt 0:00:04]} Ra2 {[%emt 0:00:03]} 29. Rxa7 {[%emt 0:00:14]} Ra1 {[%emt 0:00:20]} 30. Rc7 {[%emt 0:00:01]} Nxf3 {[%emt 0:00:00]} 31. Kg2 {[%emt 0:00:05]} Ne1+ {[%emt 0:00:28]} 32. Kg3 {[%emt 0:00:16]} Nd3 {[%emt 0:00:05]} 33. Be3 {[%emt 0:00:01]} Rxa3 {[%emt 0:00:38]} 34. Rb7 {[%emt 0:00:05]} Nb2 {[%emt 0:01:23]} 35. Kg2 {[%emt 0:00:44]} Nc4 {[%emt 0:00:05]} 36. Bxb6 {[%emt 0:00:05]} Rb3 {[%emt 0:00:22]} 37. Rb8+ {[%emt 0:00:00]} Kh7 {[%emt 0:00:00]} 38. Bc7 {[%emt 0:00:01]} Rc3 {[%emt 0:00:21]} 39. Rb7 {[%emt 0:00:14]} Kg6 {[%emt 0:00:17]} 40. Bg3 {[%emt 0:00:07]} Rc2 {[%emt 0:00:26]} 41. Rb3 {[%emt 0:00:05]} Nd2 {[%emt 0:00:09]} 42. Rb6+ {[%emt 0:00:04]} f6 {[%emt 0:00:03]} 43. Re6 {[%emt 0:00:27]} Rc4 {[%emt 0:00:14]} 44. Re2 {[%emt 0:00:18]} Ne4 {[%emt 0:00:07]} 45. Bb8 {[%emt 0:00:50]} Ng5 {[%emt 0:00:11]} 46. Bg3 {[%emt 0:00:00]} Ne4 {[%emt 0:00:00]} 47. Bb8 {[%emt 0:00:06]} Ng5 {[%emt 0:00:00]} 48. Bg3 {[%emt 0:00:17]} Ne4 {[%emt 0:00:00]} 1/2-1/2

[Event "Balkan Youth Online-ch 2020"]
[Site "Online"]
[Date "2020.10.31"]
[Round "5.57"]
[White "Yurt, Nehir"]
[Black "Levstik Taja"]
[Result "1-0"]
[ECO "C47"]
[WhiteElo "1230"]
[BlackElo "1342"]
[Annotator "NA"]
[PlyCount "61"]
[EventDate "2020.10.31"]
[EventType "swiss"]
[SourceTitle "playchess.com"]
[Source "ChessBase"]
[SourceQuality "1"]
[TimeControl "1500+5"]

1. e4 {[%emt 0:00:00]} e5 {[%emt 0:00:00]} 2. Nf3 {[%emt 0:00:00]} Nc6 {[%emt 0:00:00]} 3. Nc3 {[%emt 0:00:00]} Nf6 {[%emt 0:00:00]} 4. d4 {[%emt 0:00:00]} exd4 {[%emt 0:00:00]} 5. Nxd4 {[%emt 0:00:00]} Bb4 {[%emt 0:00:00]} 6. Nxc6 {[%emt 0:00:00]} bxc6 {[%emt 0:00:00]} 7. Qf3 {[%emt 0:01:37]} d5 {[%emt 0:00:02]} 8. exd5 {[%emt 0:00:36]} cxd5 {[%emt 0:00:01]} 9. Bd2 {[%emt 0:01:08]} O-O {[%emt 0:00:12]} 10. Be2 {[%emt 0:00:08]} Bg4 {[%emt 0:00:18]} 11. Qd3 {[%emt 0:01:10]} Bxe2 {[%emt 0:00:32]} 12. Nxe2 {[%emt 0:00:08]} Qd6 {[%emt 0:00:21]} 13. O-O {[%emt 0:00:55]} Ng4 {[%emt 0:00:20]} 14. Ng3 {[%emt 0:00:34]} Bxd2 {[%emt 0:00:49]} 15. Qxd2 {[%emt 0:00:16]} Rfe8 {[%emt 0:00:06]} 16. h3 {[%emt 0:00:26]} Nf6 {[%emt 0:00:23]} 17. Rfe1 {[%emt 0:01:01]} Qb6 {[%emt 0:00:56]} 18. Qc3 {[%emt 0:03:50]} d4 {[%emt 0:00:13]} 19. Qb3 {[%emt 0:01:51]} Qc6 {[%emt 0:00:12]} 20. Nf5 {[%emt 0:02:15]} Rad8 {[%emt 0:00:44]} 21. Ne7+ {[%emt 0:00:20]} Rxe7 {[%emt 0:00:26]} 22. Rxe7 {[%emt 0:00:04]} Rf8 {[%emt 0:00:22]} 23. Rae1 {[%emt 0:00:50]} Nh5 {[%emt 0:01:23]} 24. R1e4 {[%emt 0:02:52]} Qf6 {[%emt 0:01:46]} 25. Qf3 {[%emt 0:01:18]} Qb6 {[%emt 0:00:24]} 26. Qxh5 {[%emt 0:00:27]} Qxb2 {[%emt 0:00:17]} 27. Qc5 {[%emt 0:00:42]} c6 {[%emt 0:00:55]} 28. Re8 {[%emt 0:00:07]} h6 {[%emt 0:00:29]} 29. Rxf8+ {[%emt 0:00:02]} Kh7 {[%emt 0:00:01]} 30. Qf5+ {[%emt 0:00:00]} g6 {[%emt 0:00:00]} 31. Qxf7# {[%emt 0:00:00]} 1-0

[Event "Balkan Youth Online-ch 2020"]
[Site "Online"]
[Date "2020.10.31"]
[Round "5.58"]
[White "Timagina, Sofia"]
[Black "Toumpakari, Maria"]
[Result "0-1"]
[ECO "B29"]
[WhiteElo "1127"]
[BlackElo "1376"]
[Annotator "NA"]
[PlyCount "102"]
[EventDate "2020.10.31"]
[EventType "swiss"]
[SourceTitle "playchess.com"]
[Source "ChessBase"]
[SourceQuality "1"]
[TimeControl "1500+5"]

1. e4 {[%emt 0:10:43]} c5 {[%emt 0:00:00]} 2. Nf3 {[%emt 0:00:00]} Nf6 {[%emt 0:00:11]} 3. e5 {[%emt 0:00:00]} Nd5 {[%emt 0:00:02]} 4. Nc3 {[%emt 0:00:00]} Nxc3 {[%emt 0:00:18]} 5. dxc3 {[%emt 0:00:00]} g6 {[%emt 0:00:07]} 6. Bf4 {[%emt 0:00:42]} Qb6 {[%emt 0:01:04]} 7. b3 {[%emt 0:04:43]} Bg7 {[%emt 0:00:35]} 8. Bc4 {[%emt 0:02:51]} O-O {[%emt 0:00:38]} 9. O-O {[%emt 0:00:19]} Nc6 {[%emt 0:00:12]} 10. Qd2 {[%emt 0:01:31]} Na5 {[%emt 0:01:17]} 11. Bd3 {[%emt 0:00:53]} d6 {[%emt 0:00:46]} 12. Rad1 {[%emt 0:01:18]} Be6 {[%emt 0:00:52]} 13. Rfe1 {[%emt 0:00:18]} d5 {[%emt 0:00:11]} 14. h3 {[%emt 0:00:46]} Rfd8 {[%emt 0:00:14]} 15. Bh6 {[%emt 0:01:23]} Bh8 {[%emt 0:00:34]} 16. Qg5 {[%emt 0:00:17]} Qc7 {[%emt 0:01:22]} 17. Qh4 {[%emt 0:00:23]} Bg7 {[%emt 0:00:38]} 18. Ng5 {[%emt 0:00:03]} Bxe5 {[%emt 0:01:38]} 19. g3 {[%emt 0:00:10]} Bf6 {[%emt 0:00:38]} 20. Kh1 {[%emt 0:00:02]} Nc6 {[%emt 0:00:32]} 21. Kg1 {[%emt 0:00:03]} Ne5 {[%emt 0:00:02]} 22. Kh1 {[%emt 0:00:03]} Nf3 {[%emt 0:00:11]} 23. Nxe6 {[%emt 0:00:03]} fxe6 {[%emt 0:00:02]} 24. Qf4 {[%emt 0:00:08]} Qxf4 {[%emt 0:00:02]} 25. gxf4 {[%emt 0:00:02]} Nxe1 {[%emt 0:00:00]} 26. Rxe1 {[%emt 0:00:00]} Kf7 {[%emt 0:00:03]} 27. Kg2 {[%emt 0:00:00]} a6 {[%emt 0:00:18]} 28. Kg3 {[%emt 0:00:00]} b5 {[%emt 0:00:04]} 29. c4 {[%emt 0:00:24]} bxc4 {[%emt 0:00:25]} 30. bxc4 {[%emt 0:00:00]} a5 {[%emt 0:00:18]} 31. cxd5 {[%emt 0:00:00]} exd5 {[%emt 0:00:09]} 32. h4 {[%emt 0:00:10]} Rab8 {[%emt 0:00:03]} 33. f5 {[%emt 0:00:03]} c4 {[%emt 0:00:32]} 34. Be2 {[%emt 0:00:04]} Rb2 {[%emt 0:00:13]} 35. Bd1 {[%emt 0:00:08]} Rxa2 {[%emt 0:00:05]} 36. Re6 {[%emt 0:00:00]} Rd6 {[%emt 0:00:22]} 37. Re3 {[%emt 0:00:05]} Ra1 {[%emt 0:00:33]} 38. Be2 {[%emt 0:00:00]} a4 {[%emt 0:00:01]} 39. fxg6+ {[%emt 0:00:01]} hxg6 {[%emt 0:00:00]} 40. Kg2 {[%emt 0:00:10]} a3 {[%emt 0:00:00]} 41. Bf3 {[%emt 0:00:08]} a2 {[%emt 0:00:09]} 42. Ra3 {[%emt 0:00:01]} Bxh4 {[%emt 0:00:46]} 43. Bf4 {[%emt 0:00:10]} Rd8 {[%emt 0:00:33]} 44. Be5 {[%emt 0:00:13]} d4 {[%emt 0:00:11]} 45. Kh3 {[%emt 0:00:11]} Bf6 {[%emt 0:00:00]} 46. Bxf6 {[%emt 0:00:00]} Kxf6 {[%emt 0:00:06]} 47. Kg4 {[%emt 0:00:06]} d3 {[%emt 0:00:09]} 48. cxd3 {[%emt 0:00:02]} Rxd3 {[%emt 0:00:18]} 49. Be4 {[%emt 0:00:13]} Rxa3 {[%emt 0:00:00]} 50. f3 {[%emt 0:00:00]} Rg1+ {[%emt 0:00:05]} 51. Kf4 {[%emt 0:00:00]} e5# {[%emt 0:00:08]} 0-1

[Event "Balkan Youth Online-ch 2020"]
[Site "Online"]
[Date "2020.10.31"]
[Round "5.63"]
[White "Christodoulou, Georgia"]
[Black "Tirpan, Ceren"]
[Result "0-1"]
[ECO "C88"]
[WhiteElo "1373"]
[BlackElo "1379"]
[Annotator "NA"]
[PlyCount "94"]
[EventDate "2020.10.31"]
[EventType "swiss"]
[SourceTitle "playchess.com"]
[Source "ChessBase"]
[SourceQuality "1"]
[TimeControl "1500+5"]

1. e4 {[%emt 0:00:00]} e5 {[%emt 0:00:00]} 2. Nf3 {[%emt 0:00:00]} Nc6 {[%emt 0:00:00]} 3. Bb5 {[%emt 0:00:00]} a6 {[%emt 0:00:00]} 4. Ba4 {[%emt 0:00:00]} Nf6 {[%emt 0:00:00]} 5. d3 {[%emt 0:00:00]} b5 {[%emt 0:00:00]} 6. Bb3 {[%emt 0:00:00]} Be7 {[%emt 0:00:00]} 7. O-O {[%emt 0:00:00]} O-O {[%emt 0:00:00]} 8. Nbd2 {[%emt 0:00:02]} d6 {[%emt 0:00:00]} 9. a4 {[%emt 0:00:42]} Bb7 {[%emt 0:00:00]} 10. Re1 {[%emt 0:00:16]} h6 {[%emt 0:00:02]} 11. Nf1 {[%emt 0:00:02]} Na5 {[%emt 0:00:18]} 12. c3 {[%emt 0:02:20]} c5 {[%emt 0:00:56]} 13. Bc2 {[%emt 0:01:23]} Qc7 {[%emt 0:00:23]} 14. Bd2 {[%emt 0:02:46]} Rfc8 {[%emt 0:01:11]} 15. Ng3 {[%emt 0:00:42]} Bf8 {[%emt 0:00:50]} 16. Nh4 {[%emt 0:01:33]} g6 {[%emt 0:00:20]} 17. f4 {[%emt 0:00:32]} Bg7 {[%emt 0:03:23]} 18. f5 {[%emt 0:02:31]} Kh7 {[%emt 0:01:05]} 19. Nf1 {[%emt 0:04:21]} Qe7 {[%emt 0:00:52]} 20. g3 {[%emt 0:01:40]} Nc6 {[%emt 0:01:22]} 21. Ne3 {[%emt 0:00:25]} Qd7 {[%emt 0:01:13]} 22. Ng4 {[%emt 0:01:01]} d5 {[%emt 0:02:04]} 23. Nxf6+ {[%emt 0:00:16]} Bxf6 {[%emt 0:00:00]} 24. Qg4 {[%emt 0:00:03]} g5 {[%emt 0:00:08]} 25. Nf3 {[%emt 0:02:35]} d4 {[%emt 0:00:52]} 26. Qh5 {[%emt 0:00:50]} Kg7 {[%emt 0:01:42]} 27. h4 {[%emt 0:00:14]} Rh8 {[%emt 0:00:01]} 28. axb5 {[%emt 0:00:41]} axb5 {[%emt 0:00:00]} 29. Rxa8 {[%emt 0:00:00]} Bxa8 {[%emt 0:00:00]} 30. Re2 {[%emt 0:00:48]} c4 {[%emt 0:00:11]} 31. cxd4 {[%emt 0:00:32]} Nxd4 {[%emt 0:00:12]} 32. Nxd4 {[%emt 0:00:38]} cxd3 {[%emt 0:00:02]} 33. Rf2 {[%emt 0:00:27]} dxc2 {[%emt 0:00:23]} 34. Nxc2 {[%emt 0:00:00]} Bxe4 {[%emt 0:00:00]} 35. Ne3 {[%emt 0:00:04]} Qe7 {[%emt 0:01:02]} 36. Ng4 {[%emt 0:00:09]} gxh4 {[%emt 0:00:30]} 37. Bxh6+ {[%emt 0:00:11]} Kg8 {[%emt 0:00:01]} 38. Nxf6+ {[%emt 0:00:10]} Qxf6 {[%emt 0:00:00]} 39. Qg4+ {[%emt 0:00:02]} Kh7 {[%emt 0:00:14]} 40. Bg5 {[%emt 0:00:08]} Qc6 {[%emt 0:00:17]} 41. Qxh4+ {[%emt 0:00:03]} Kg8 {[%emt 0:00:04]} 42. Bh6 {[%emt 0:00:11]} Rxh6 {[%emt 0:00:07]} 43. Qd8+ {[%emt 0:00:00]} Kh7 {[%emt 0:00:00]} 44. Kf1 {[%emt 0:00:03]} Qc4+ {[%emt 0:00:03]} 45. Ke1 {[%emt 0:00:00]} Rh1+ {[%emt 0:00:11]} 46. Kd2 {[%emt 0:00:00]} Qc1+ {[%emt 0:00:09]} 47. Ke2 {[%emt 0:00:00]} Re1# {[%emt 0:00:00]} 0-1

[Event "Balkan Youth Online-ch 2020"]
[Site "Online"]
[Date "2020.10.31"]
[Round "5.66"]
[White "Pandelescu, Maria-Catalina"]
[Black "Stankovic, Andrea"]
[Result "1-0"]
[ECO "C10"]
[WhiteElo "1242"]
[BlackElo "1534"]
[Annotator "NA"]
[PlyCount "115"]
[EventDate "2020.10.31"]
[EventType "swiss"]
[SourceTitle "playchess.com"]
[Source "ChessBase"]
[SourceQuality "1"]
[TimeControl "1500+5"]

1. e4 {[%emt 0:00:00]} e6 {[%emt 0:00:00]} 2. d4 {[%emt 0:00:00]} d5 {[%emt 0:00:00]} 3. exd5 {[%emt 0:00:00]} exd5 {[%emt 0:00:00]} 4. Nf3 {[%emt 0:00:00]} Nf6 {[%emt 0:00:00]} 5. Nc3 {[%emt 0:00:01]} c5 {[%emt 0:00:00]} 6. Be3 {[%emt 0:01:28]} cxd4 {[%emt 0:00:31]} 7. Nxd4 {[%emt 0:00:06]} Be7 {[%emt 0:02:07]} 8. Be2 {[%emt 0:00:21]} b6 {[%emt 0:01:00]} 9. O-O {[%emt 0:00:51]} O-O {[%emt 0:00:10]} 10. Qd2 {[%emt 0:01:12]} Bb7 {[%emt 0:01:15]} 11. Rad1 {[%emt 0:01:02]} Qc7 {[%emt 0:01:44]} 12. Ncb5 {[%emt 0:00:51]} Qc8 {[%emt 0:00:12]} 13. Bf4 {[%emt 0:00:34]} Na6 {[%emt 0:01:17]} 14. Bd3 {[%emt 0:01:08]} Qd7 {[%emt 0:01:15]} 15. Bf5 {[%emt 0:00:41]} Qd8 {[%emt 0:00:20]} 16. Rfe1 {[%emt 0:00:27]} Re8 {[%emt 0:02:47]} 17. a3 {[%emt 0:02:32]} Ne4 {[%emt 0:01:48]} 18. Qd3 {[%emt 0:01:39]} Nac5 {[%emt 0:00:11]} 19. Qh3 {[%emt 0:00:05]} g6 {[%emt 0:05:11]} 20. Nc7 {[%emt 0:00:49]} gxf5 {[%emt 0:00:52]} 21. Nxe8 {[%emt 0:00:06]} Qxe8 {[%emt 0:00:02]} 22. Nxf5 {[%emt 0:00:07]} Ne6 {[%emt 0:00:55]} 23. Qg4+ {[%emt 0:00:47]} Kh8 {[%emt 0:00:13]} 24. Bh6 {[%emt 0:01:06]} Bf8 {[%emt 0:01:34]} 25. Bxf8 {[%emt 0:00:38]} Qxf8 {[%emt 0:00:04]} 26. f3 {[%emt 0:00:25]} Nf6 {[%emt 0:00:37]} 27. Qg3 {[%emt 0:00:07]} Qg8 {[%emt 0:00:08]} 28. Qe5 {[%emt 0:00:07]} Qg6 {[%emt 0:00:00]} 29. Ne7 {[%emt 0:00:53]} Qg7 {[%emt 0:00:08]} 30. Re3 {[%emt 0:00:56]} Ne8 {[%emt 0:00:17]} 31. Qxg7+ {[%emt 0:00:04]} N8xg7 {[%emt 0:00:10]} 32. Nxd5 {[%emt 0:00:01]} Nf5 {[%emt 0:00:21]} 33. Re5 {[%emt 0:00:30]} Nfd4 {[%emt 0:00:14]} 34. c3 {[%emt 0:00:20]} Nc6 {[%emt 0:00:15]} 35. Rf5 {[%emt 0:00:12]} Kg7 {[%emt 0:00:00]} 36. Ne3 {[%emt 0:00:37]} Rd8 {[%emt 0:00:34]} 37. Rxd8 {[%emt 0:00:14]} Ncxd8 {[%emt 0:00:03]} 38. Nc4 {[%emt 0:00:43]} Kg6 {[%emt 0:00:03]} 39. g4 {[%emt 0:00:20]} Ng5 {[%emt 0:00:11]} 40. Ne5+ {[%emt 0:00:02]} Kh6 {[%emt 0:00:05]} 41. h4 {[%emt 0:00:12]} Nge6 {[%emt 0:00:18]} 42. Nxf7+ {[%emt 0:00:26]} Nxf7 {[%emt 0:00:10]} 43. Rxf7 {[%emt 0:00:00]} Bd5 {[%emt 0:00:09]} 44. f4 {[%emt 0:01:26]} a6 {[%emt 0:00:53]} 45. g5+ {[%emt 0:00:15]} Kg6 {[%emt 0:00:03]} 46. Rf6+ {[%emt 0:00:03]} Kg7 {[%emt 0:00:04]} 47. f5 {[%emt 0:00:02]} Nd8 {[%emt 0:00:21]} 48. Rd6 {[%emt 0:00:12]} Be4 {[%emt 0:00:07]} 49. f6+ {[%emt 0:00:04]} Kf7 {[%emt 0:00:01]} 50. Rxd8 {[%emt 0:00:00]} h6 {[%emt 0:00:00]} 51. Rd7+ {[%emt 0:00:00]} Kg6 {[%emt 0:00:01]} 52. f7 {[%emt 0:00:01]} Kg7 {[%emt 0:00:00]} 53. gxh6+ {[%emt 0:00:00]} Kf8 {[%emt 0:00:00]} 54. Kf2 {[%emt 0:00:26]} Bg6 {[%emt 0:00:07]} 55. Rd6 {[%emt 0:00:03]} Kxf7 {[%emt 0:00:08]} 56. Rxb6 {[%emt 0:00:00]} Bd3 {[%emt 0:00:00]} 57. Ke3 {[%emt 0:00:01]} Bf5 {[%emt 0:00:02]} 58. Rxa6 {[%emt 0:00:00]} 1-0